Workbook

Sheet Лист1
A1: Школа | B1: МБОУ "Краснокамская адаптивная школа-интернат" | E1: Отд./корп | I1: День | J1: 2021-12-08
A3: Воспитанники интерната 12-18 лет
A5: Прием пищи | B5: Раздел | C5: № рец. | D5: Блюдо | E5: Выход, г | F5: Цена | G5: Калорийность | H5: Белки | I5: Жиры | J5: Углеводы
A6: Завтрак | B6: гор.блюдо | C6: 164/2013 | D6: суп молочный с крупой | E6: 300 | G6: 194.60 | H6: 7.20 | I6: 7.40 | J6: 54.70
B7: гастроном | C7: 105/2013 | D7: масло сливочное (порциями) | E7: 15 | G7: 99.20 | H7: 0.20 | I7: 10.80 | J7: 0.20
B8: яйцо | C8: 300/2013 | D8: яйцо вареное | E8: 40 | G8: 63.20 | H8: 5.10 | I8: 4.60 | J8: 0.30
B9: хлеб бед. | C9: 108/2013 | D9: хлеб пшеничный | E9: 80 | G9: 187.50 | H9: 6.10 | I9: 0.60 | J9: 39.40
B10: гор.напиток | C10: 496/2013 | D10: какао с молоком | E10: 200 | G10: 76.20 | H10: 2.40 | I10: 1.80 | J10: 12.60
E12: Итого: | G12: =SUM(G6:G11) -> 620.70 | H12: =SUM(H6:H11) -> 21.00 | I12: =SUM(I6:I11) -> 25.20 | J12: =SUM(J6:J11) -> 107.20
A13: Обед | B13: закуска | C13: 76/2013 | D13: винегрет овощной | E13: 100 | G13: 130.00 | H13: 1.30 | I13: 10.80 | J13: 6.80
B14: 1 блюдо | C14: 154/2013 | D14: суп крестьянский с крупой | E14: 250 | G14: 112.50 | H14: 2.20 | I14: 5.10 | J14: 14.60
B15: гастроном | C15: 479/2013 | D15: сметана | E15: 4 | G15: 6.04 | H15: 0.08 | I15: 0.56 | J15: 0.12
B16: 2 блюдо | C16: 391/2013 | D16: фрикадельки из говядины паровые | E16: 120 | G16: 236.40 | H16: 17.04 | I16: 15.12 | J16: 8.16
B17: гарнир | C17: 348сб/2013 | D17: рагу овощное | E17: 180 | G17: 142.70 | H17: 4.70 | I17: 5.30 | J17: 19.00
B18: напиток | C18: 501/2013 | D18: кофейный напиток с молоком | E18: 200 | G18: 79.00 | H18: 3.20 | I18: 2.78 | J18: 15.90
B19: хлеб бел. | C19: 108/2013 | D19: Хлеб пшеничный | E19: 60 | G19: 140.60 | H19: 4.60 | I19: 0.50 | J19: 29.50
B20: хлеб черн. | C20: 510/2013 | D20: Хлеб ржано-пшеничный | E20: 70 | G20: 160.90 | H20: 3.90 | I20: 0.80 | J20: 34.60
E22: Итого: | G22: =SUM(G13:G21) -> 1008.14 | H22: =SUM(H13:H21) -> 37.02 | I22: 40.96 | J22: 128.68
A23: Полдник | B23: гор.блюдо | C23: 280/2013 | D23: запеканка манная со свежими плодами | E23: 100 | G23: 136.00 | H23: 3.85 | I23: 3.60 | J23: 22.00
B24: фрукты | C24: 112/2013 | D24: банан | E24: 210 | G24: 138.90 | H24: 2.20 | I24: 0.70 | J24: 30.90
B25: напиток | C25: 2 тк | D25: вит.нап. "Витошка" | E25: 200 | G25: 75.00 | H25: 0.00 | I25: 0.00 | J25: 19.00
E27: Итого: | G27: =SUM(G23:G26) -> 349.90 | H27: =SUM(H23:H26) -> 6.05 | I27: 4.30 | J27: 71.90
A28: Ужин | B28: гор.блюдо | C28: 340/2013 | D28: рыба, запеченная с картофелем по-русски | E28: 280 | G28: 274.20 | H28: 18.70 | I28: 10.40 | J28: 26.50
B29: гор.напиток | C29: 494/2013 | D29: чай с лимоном | E29: 200 | G29: 61.00 | H29: 0.10 | I29: 0.00 | J29: 15.20
B30: хлеб бел. | C30: 108/2013 | D30: хлеб пшеничный | E30: 40 | G30: 93.80 | H30: 3.00 | I30: 0.30 | J30: 19.70
B31: хлеб черн. | C31: 110/2013 | D31: хлеб ржано-пшеничный | E31: 50 | G31: 114.90 | H31: 2.80 | I31: 0.60 | J31: 24.70
E32: Итого: | G32: =SUM(G28:G31) -> 543.90 | H32: =SUM(H28:H31) -> 24.60 | I32: 11.30 | J32: 86.10
A33: 2 ужин | B33: кисломолоч. | C33: 517/2013 | D33: йогурт | E33: 194 | G33: 122.58 | H33: 9.70 | I33: 6.18 | J33: 6.79
E34: Итого: | G34: =G33 -> 122.58 | H34: =H33 -> 9.70 | I34: 6.18 | J34: 6.79
E35: ВСЕГО: | G35: =SUM(G12+G22+G27+G32+G34) -> 2645.22 | H35: =SUM(H12+H22+H27+H32+H34) -> 98.37 | I35: 87.94 | J35: 400.67
A37: Приходящие учащиеся 12-18 лет
A40: Прием пищи | B40: Раздел | C40: № рец. | D40: Блюдо | E40: Выход, г | F40: Цена | G40: Калорийность | H40: Белки | I40: Жиры | J40: Углеводы
A41: Завтрак | B41: гор.блюдо | C41: 266/2013 | D41: каша из овс.хл."Геркулес" жидкая | E41: 200 | G41: 240.00 | H41: 6.20 | I41: 7.50 | J41: 37.00
B42: гастроном | C42: 100/2013 | D42: сыр сычужный твердый (порциями0 | E42: 25 | G42: 89.50 | H42: 5.80 | I42: 7.40 | J42: 0.00
B43: хлеб бел. | C43: 108/2013 | D43: хлеб пшеничный | E43: 60 | G43: 140.60 | H43: 4.60 | I43: 0.50 | J43: 29.50
B44: гор.напиток | C44: 495/2013 | D44: чай с молоком | E44: 200 | G44: 81.00 | H44: 1.50 | I44: 1.30 | J44: 15.90
B45: фрукт | C45: 112/2013 | D45: бананы | E45: 200 | G45: 134.30 | H45: 2.00 | I45: 0.70 | J45: 29.40
E46: Итого: | G46: =SUM(G41:G45) -> 685.40 | H46: =SUM(H41:H44) -> 18.10 | I46: =SUM(I41:I44) -> 16.70 | J46: =SUM(J41:J44) -> 82.40
A47: Обед | B47: закуска | C47: 76/2013 | D47: винегрет овощной | E47: 100 | G47: 130.00 | H47: 1.30 | I47: 10.80 | J47: 6.80
B48: 1 блюдо | C48: 154/2013 | D48: суп крестьянский с крупой | E48: 250 | G48: 112.50 | H48: 2.20 | I48: 5.10 | J48: 14.60
B49: гастроном | C49: 479/2013 | D49: сметана | E49: 4 | G49: 6.04 | H49: 0.08 | I49: 0.56 | J49: 0.12
B50: 2 блюдо | C50: 391/2013 | D50: фрикадельки из говядины паровые | E50: 120 | G50: 236.40 | H50: 17.04 | I50: 15.12 | J50: 8.16
B51: гарнир | C51: 348сб/2013 | D51: рагу овощное | E51: 180 | G51: 142.70 | H51: 4.70 | I51: 5.30 | J51: 19.00
B52: напиток | C52: 501/2013 | D52: кофейный напиток с молоком | E52: 200 | G52: 79.00 | H52: 3.20 | I52: 2.78 | J52: 15.90
B53: хлеб бел. | C53: 108/2013 | D53: Хлеб пшеничный | E53: 30 | G53: 70.30 | H53: 2.30 | I53: 0.20 | J53: 14.80
B54: хлеб черн. | C54: 510/2013 | D54: Хлеб ржано-пшеничный | E54: 52 | G54: 119.52 | H54: 2.90 | I54: 0.60 | J54: 25.70
E56: Итого: | G56: =SUM(G47:G55) -> 896.46 | H56: =SUM(H47:H55) -> 33.72 | I56: 40.46 | J56: 105.08
E57: ВСЕГО: | G57: =SUM(G46+G56) -> 1581.86 | H57: =SUM(H46+H56) -> 51.82 | I57: 57.16 | J57: 187.48
